fUSD/lending_fUSD_20240216
["ID","MTS","AMOUNT","RATE_DAILY","PERIOD"]
[314247203,1708119060687,-500.0,0.00049315,60]
[314247204,1708119060696,-578.51,0.00049315,60]
[314247205,1708119060706,-500.0,0.00049315,60]
[314247206,1708119060715,-500.0,0.00049315,7]
[314247207,1708119060724,-1000.0,0.00049315,60]
[314247208,1708119060733,-500.0,0.00049315,60]
[314247209,1708119060742,-504.61785763,0.00049315,60]
[314247210,1708119060753,-500.0,0.00049315,60]
[314247211,1708119060762,-500.0,0.00049315,60]
[314247212,1708119060771,-521.15146352,0.00049315,60]
[314247213,1708119060780,-500.0,0.00049315,60]
[314247214,1708119060790,-547.27421017,0.00049315,60]
[314247215,1708119060801,-500.0,0.00049315,60]
[314247216,1708119060811,-230.33176721,0.00049315,60]
[314247217,1708119060821,-500.0,0.00049315,60]
[314247218,1708119060830,-500.0,0.00049315,60]
[314247219,1708119060840,-500.0,0.00049315,60]
[314247220,1708119060849,-940.09,0.00049315,60]
[314247221,1708119060859,-509.77540713,0.00049315,60]
[314247222,1708119060868,-500.0,0.00049315,60]
[314247223,1708119060878,-500.0,0.00049315,60]
[314247224,1708119060887,-500.0,0.00049315,60]
[314247225,1708119060896,-500.0,0.00049315,60]
[314247226,1708119060906,-500.0,0.00049315,60]
[314247227,1708119060920,-500.0,0.00049315,60]
[314247228,1708119060930,-585.36827855,0.00049315,60]
[314247229,1708119060940,-500.0,0.00049315,60]
[314247230,1708119060950,-500.0,0.00049315,60]
[314247231,1708119060959,-500.0,0.00049315,60]
[314247232,1708119060969,-500.0,0.00049315,60]
[314247233,1708119060978,-608.69785504,0.00049315,60]
[314247234,1708119060990,-816.62,0.00049315,60]
[314247235,1708119060999,-500.0,0.00049315,60]
[314247236,1708119061009,-176.18556964,0.00049315,60]
[314247237,1708119061018,-500.0,0.00049315,60]
[314247238,1708119061027,-508.39566284,0.00049315,60]
[314247239,1708119061037,-500.0,0.00049315,60]
[314247240,1708119061046,-500.0,0.00049315,60]
[314247241,1708119061055,-505.95348809,0.00049315,60]
[314247242,1708119061065,-500.0,0.00049315,60]
[314247243,1708119061075,-500.0,0.00049315,60]
[314247244,1708119061084,-500.0,0.00049315,60]
[314247245,1708119061093,-500.0,0.00049315,60]
[314247246,1708119061103,-500.0,0.00049315,60]
[314247247,1708119061112,-500.0,0.00049315,60]
[314247248,1708119061122,-642.11,0.00049315,60]
[314247249,1708119061131,-500.0,0.00049315,60]
[314247250,1708119061140,-500.0,0.00049315,60]
[314247251,1708119061150,-500.0,0.00049315,60]
[314247252,1708119061159,-500.0,0.00049315,60]
[314247253,1708119061169,-500.0,0.00049315,60]
[314247254,1708119061179,-508.45040547,0.00049315,60]
[314247255,1708119061188,-500.0,0.00049315,60]
[314247256,1708119061198,-529.43452019,0.00049315,60]
[314247257,1708119061207,-500.0,0.00049315,60]
[314247258,1708119061217,-508.63360357,0.00049315,60]
[314247259,1708119061227,-500.0,0.00049315,60]
[314247260,1708119061236,-500.0,0.00049315,60]
[314247261,1708119061245,-530.57369265,0.00049315,60]
[314247262,1708119061255,-500.0,0.00049315,60]
[314247263,1708119061265,-500.0,0.00049315,60]
[314247264,1708119061274,-1167.88,0.00049315,60]
[314247265,1708119061283,-500.0,0.00049315,60]
[314247266,1708119061293,-500.0,0.00049315,60]
[314247267,1708119061302,-500.0,0.00049315,60]
[314247268,1708119061312,-500.0,0.00049315,60]
[314247269,1708119061321,-500.0,0.00049315,60]
[314247270,1708119061331,-500.0,0.00049315,60]
[314247271,1708119061340,-500.0,0.00049315,60]
[314247272,1708119061350,-500.0,0.00049315,60]
[314247273,1708119061359,-500.0,0.00049315,60]
[314247274,1708119061369,-500.0,0.00049315,60]
[314247275,1708119061379,-500.0,0.00049315,60]
[314247276,1708119061388,-500.0,0.00049315,60]
[314247277,1708119061398,-851.65,0.00049315,60]
[314247278,1708119061407,-500.0,0.00049315,60]
[314247279,1708119061418,-500.0,0.00049315,60]
[314247280,1708119061429,-500.0,0.00049315,60]
[314247281,1708119061438,-500.0,0.00049315,60]
[314247282,1708119061447,-500.0,0.00049315,60]
[314247283,1708119061458,-500.0,0.00049315,60]
[314247284,1708119061468,-500.0,0.00049315,60]
[314247285,1708119061478,-500.0,0.00049315,60]
[314247286,1708119061489,-500.0,0.00049315,60]
[314247287,1708119061499,-500.0,0.00049315,60]
[314247288,1708119061509,-500.0,0.00049315,60]
[314247289,1708119061519,-2216.52,0.00049315,60]
[314247290,1708119061528,-500.0,0.00049315,60]
[314247291,1708119061539,-500.0,0.00049315,60]
[314247292,1708119061549,-509.15295654,0.00049315,60]
[314247293,1708119061559,-500.0,0.00049315,60]
[314247294,1708119061568,-500.0,0.00049315,60]
[314247295,1708119061578,-500.0,0.00049315,60]
[314247296,1708119061587,-500.0,0.00049315,60]
[314247297,1708119061596,-500.0,0.00049315,60]
[314247298,1708119061606,-500.0,0.00049315,60]
[314247299,1708119061616,-500.0,0.00049315,60]
[314247300,1708119061626,-500.0,0.00049315,60]
[314247301,1708119061635,-694.71,0.00049315,60]
[314247302,1708119061644,-500.0,0.00049315,60]
[314247303,1708119061654,-500.0,0.00049315,60]
[314247304,1708119061663,-500.0,0.00049315,60]
[314247305,1708119061675,-500.0,0.00049315,60]
[314247306,1708119061684,-616.44274536,0.00049315,60]
[314247307,1708119061694,-500.0,0.00049315,60]
[314247308,1708119061703,-500.0,0.00049315,60]
[314247309,1708119061713,-500.0,0.00049315,60]
[314247310,1708119061723,-500.0,0.00049315,60]
[314247311,1708119061734,-2871.6,0.00049315,60]
[314247312,1708119061743,-542.33528651,0.00049315,60]
[314247313,1708119061752,-500.0,0.00049315,60]
[314247314,1708119061764,-500.0,0.00049315,60]
[314247315,1708119061773,-500.0,0.00049315,60]
[314247316,1708119061783,-500.0,0.00049315,60]
[314247317,1708119061793,-500.0,0.00049315,60]
[314247318,1708119061803,-562.06,0.00049315,60]
[314247319,1708119061813,-500.0,0.00049315,60]
[314247320,1708119061822,-589.85,0.00049315,60]
[314247321,1708119061833,-500.0,0.00049315,60]
[314247322,1708119061844,-500.0,0.00049315,60]
[314247323,1708119061854,-524.91555999,0.00049315,60]
[314247324,1708119061864,-1083.11,0.00049315,60]
[314247325,1708119061874,-10000.0,0.00049315,60]
[314247326,1708119061883,-500.0,0.00049315,60]
[314247327,1708119061893,-500.0,0.00049315,60]
[314247328,1708119061903,-500.0,0.00049315,30]
[314247329,1708119061916,-500.0,0.00049315,60]
[314247330,1708119061927,-2574.8,0.00049315,60]
[314247331,1708119061938,-500.0,0.00049315,60]
[314247332,1708119061949,-500.0,0.00049315,60]
[314247333,1708119061959,-150.0,0.00049315,60]
[314247334,1708119061969,-500.0,0.00049315,60]
[314247335,1708119061979,-500.0,0.00049315,60]
[314247336,1708119061990,-500.0,0.00049315,60]
[314247337,1708119062000,-500.0,0.00049315,60]
[314247338,1708119062010,-500.0,0.00049315,60]
[314247339,1708119062020,-500.0,0.00049315,60]
[314247340,1708119062031,-492.41516199,0.00049315,60]
[314247341,1708119062041,-500.0,0.00049315,60]
[314247342,1708119062051,-500.0,0.00049315,60]
[314247343,1708119062061,-500.0,0.00049315,60]
[314247344,1708119062071,-890.17,0.00049315,60]
[314247345,1708119062080,-500.0,0.00049315,60]
[314247346,1708119062093,-1244.45,0.00049315,60]
[314247347,1708119062103,-500.0,0.00049315,60]
[314247348,1708119062113,-500.0,0.00049315,60]
[314247349,1708119062123,-500.0,0.00049315,60]
[314247350,1708119062133,-500.0,0.00049315,60]
[314247351,1708119062142,-500.0,0.00049315,60]
[314247352,1708119062152,-250.0,0.00049315,60]
[314247353,1708119062162,-500.0,0.00049315,60]
[314247354,1708119062172,-588.9,0.00049315,60]
[314247355,1708119062181,-1983.03,0.00049315,60]
[314247356,1708119062191,-500.0,0.00049315,60]
[314247357,1708119062201,-629.82837974,0.00049315,60]
[314247358,1708119062211,-500.0,0.00049315,60]
[314247359,1708119062221,-500.0,0.00049315,60]
[314247360,1708119062232,-527.90689567,0.00049315,60]
[314247361,1708119062242,-500.0,0.00049315,60]
[314247362,1708119062251,-500.0,0.00049315,60]
[314247363,1708119062261,-500.0,0.00049315,60]
[314247364,1708119062272,-500.0,0.00049315,60]
[314247365,1708119062281,-1068.84,0.00049315,60]
[314247366,1708119062291,-500.0,0.00049315,60]
[314247367,1708119062301,-742.37,0.00049315,60]
[314247368,1708119062310,-500.0,0.00049315,60]
[314247369,1708119062320,-803.55,0.00049315,60]
[314247370,1708119062330,-4400.67,0.00049315,60]
[314247371,1708119062339,-500.0,0.00049315,60]
[314247372,1708119062349,-821.93,0.00049315,60]
[314247373,1708119062358,-500.0,0.00049315,60]
[314247374,1708119062368,-500.0,0.00049315,60]
[314247375,1708119062378,-500.0,0.00049315,60]
[314247376,1708119062388,-500.0,0.00049315,60]
[314247377,1708119062397,-538.03,0.00049315,60]
[314247378,1708119062407,-500.0,0.00049315,60]
[314247379,1708119062417,-500.0,0.00049315,60]
[314247380,1708119062427,-500.0,0.00049315,60]
[314247381,1708119062436,-500.0,0.00049315,60]
[314247382,1708119062446,-500.0,0.00049315,60]
[314247383,1708119062457,-500.0,0.00049315,60]
[314247384,1708119062467,-3625.09,0.00049315,60]
[314247385,1708119062477,-500.0,0.00049315,60]
[314247386,1708119062486,-964.44,0.00049315,60]
[314247387,1708119062496,-500.0,0.00049315,60]
[314247388,1708119062506,-500.0,0.00049315,60]
[314247389,1708119062515,-1492.92,0.00049315,60]
[314247390,1708119062524,-2046.77,0.00049315,60]
[314247391,1708119062534,-500.0,0.00049315,60]
[314247392,1708119062544,-500.0,0.00049315,60]
[314247393,1708119062554,-500.0,0.00049315,60]
[314247394,1708119062564,-500.0,0.00049315,60]
[314247395,1708119062574,-802.5,0.00049315,60]
[314247396,1708119062583,-500.0,0.00049315,60]
[314247397,1708119062593,-610.16,0.00049315,60]
[314247398,1708119062602,-500.0,0.00049315,60]
[314247399,1708119062612,-500.0,0.00049315,60]
[314247400,1708119062621,-1066.34,0.00049315,60]
[314247401,1708119062631,-500.0,0.00049315,60]
[314247402,1708119062641,-797.01,0.00049315,60]
[314247403,1708119062650,-500.0,0.00049315,60]
[314247404,1708119062660,-543.97414455,0.00049315,60]
[314247405,1708119062669,-3199.37,0.00049315,60]
[314247406,1708119062680,-500.0,0.00049315,60]
[314247407,1708119062689,-729.2,0.00049315,60]
[314247408,1708119062699,-500.0,0.00049315,60]
[314247409,1708119062709,-24352.15,0.00049315,60]
[314247410,1708119062718,-1397.78,0.00049315,60]
[314247411,1708119062727,-500.0,0.00049315,60]
[314247412,1708119062737,-500.0,0.00049315,60]
[314247413,1708119062747,-500.0,0.00049315,60]
[314247414,1708119062757,-500.0,0.00049315,60]
[314247415,1708119062768,-500.0,0.00049315,60]
[314247416,1708119062777,-2225.09,0.00049315,60]
[314247417,1708119062787,-500.0,0.00049315,60]
[314247418,1708119062796,-500.0,0.00049315,60]
[314247419,1708119062806,-3059.93,0.00049315,60]
[314247420,1708119062816,-500.0,0.00049315,60]
[314247421,1708119062826,-663.32,0.00049315,60]
[314247422,1708119062836,-500.0,0.00049315,60]
[314247423,1708119062846,-559.03,0.00049315,60]
[314247424,1708119062856,-500.0,0.00049315,60]
[314247425,1708119062865,-500.0,0.00049315,60]
[314247426,1708119062875,-500.0,0.00049315,60]
[314247427,1708119062885,-500.0,0.00049315,60]
[314247428,1708119062895,-500.0,0.00049315,60]
[314247429,1708119062910,-500.0,0.00049315,60]
[314247430,1708119062920,-3189.76,0.00049315,60]
[314247431,1708119062930,-2572.92,0.00049315,60]
[314247432,1708119062940,-1075.21,0.00049315,60]
[314247433,1708119063150,-500.0,0.00049315,60]
[314247434,1708119063160,-511.86968566,0.00049315,60]
[314247435,1708119063170,-500.0,0.00049315,60]
[314247436,1708119063180,-500.0,0.00049315,60]
[314247437,1708119063189,-500.0,0.00049315,60]
[314247438,1708119063199,-4525.95,0.00049315,60]
[314247439,1708119063208,-648.82,0.00049315,60]
[314247440,1708119063217,-5354.43,0.00049315,60]
[314247441,1708119063226,-703.45,0.00049315,60]
[314247442,1708119063235,-1211.83,0.00049315,60]
[314247443,1708119063245,-500.0,0.00049315,60]
[314247444,1708119063254,-871.55,0.00049315,60]
[314247445,1708119063263,-609.42,0.00049315,60]
[314247446,1708119063273,-1231.04,0.00049315,60]
[314247447,1708119063282,-737.52,0.00049315,60]
[314247448,1708119063291,-591.52,0.00049315,60]
[314247449,1708119063300,-719.76,0.00049315,60]
[314247450,1708119063309,-2765.99,0.00049315,60]
[314247451,1708119063319,-500.0,0.00049315,60]
[314247452,1708119063328,-518.46785809,0.00049315,60]
[314247453,1708119063337,-500.0,0.00049315,60]
[314247454,1708119063347,-1575.91,0.00049315,60]
[314247455,1708119063356,-508.11987439,0.00049315,60]
[314247456,1708119063365,-500.0,0.00049315,60]
[314247457,1708119063374,-868.38,0.00049315,60]
[314247458,1708119063385,-606.97,0.00049315,60]
[314247459,1708119063394,-9546.8,0.00049315,60]
[314247460,1708119063403,-500.0,0.00049315,60]
[314247461,1708119063413,-2411.87,0.00049315,60]
[314247462,1708119063422,-500.0,0.00049315,60]
[314247463,1708119063431,-500.0,0.00049315,60]
[314247464,1708119063441,-500.0,0.00049315,60]
[314247465,1708119063451,-500.0,0.00049315,60]
[314247466,1708119063460,-570.56,0.00049315,60]
[314247467,1708119063470,-500.0,0.00049315,60]
[314247468,1708119063479,-167.53644128,0.00049315,60]
[314247469,1708119063488,-601.55822124,0.00049315,60]
[314247470,1708119063498,-1028.79,0.00049315,60]
[314247471,1708119063508,-500.0,0.00049315,60]
[314247472,1708119063518,-1081.67,0.00049315,60]
[314247473,1708119063529,-500.0,0.00049315,60]
[314247474,1708119063541,-500.0,0.00049315,60]
[314247475,1708119063552,-500.0,0.00049315,60]
[314247476,1708119063563,-500.0,0.00049315,60]
[314247477,1708119063573,-8340.13,0.00049315,60]
[314247478,1708119063583,-500.0,0.00049315,60]
[314247479,1708119063593,-629.58912136,0.00049315,60]
[314247480,1708119063603,-6395.6,0.00049315,14]
[314247481,1708119063612,-500.0,0.00049315,60]
[314247482,1708119063622,-500.0,0.00049315,60]
[314247483,1708119063631,-500.0,0.00049315,60]
[314247484,1708119063641,-500.0,0.00049315,60]
[314247485,1708119063650,-500.0,0.00049315,60]
[314247486,1708119063659,-500.0,0.00049315,7]
[314247487,1708119063669,-2287.27,0.00049315,60]
[314247488,1708119063681,-542.74,0.00049315,60]
[314247489,1708119063691,-500.0,0.00049315,60]
[314247490,1708119063701,-500.0,0.00049315,60]
[314247491,1708119063710,-1517.81,0.00049315,60]
[314247492,1708119063720,-500.0,0.00049315,60]
[314247493,1708119063729,-520.3,0.00049315,60]
[314247494,1708119063738,-500.0,0.00049315,60]
[314247495,1708119063748,-512.40613475,0.00049315,60]
[314247496,1708119063757,-500.0,0.00049315,60]
[314247497,1708119063766,-7477.21,0.00049315,60]
[314247498,1708119063775,-500.0,0.00049315,60]
[314247499,1708119063785,-714.64,0.00049315,60]
[314247500,1708119063795,-500.0,0.00049315,60]
[314247501,1708119063805,-500.0,0.00049315,60]
[314247502,1708119063815,-630.12,0.00049315,60]
[314247503,1708119063824,-500.0,0.00049315,60]
[314247504,1708119063833,-500.0,0.00049315,60]
[314247505,1708119063842,-500.0,0.00049315,60]
[314247506,1708119063852,-500.0,0.00049315,60]
[314247507,1708119063862,-500.0,0.00049315,60]
[314247508,1708119063871,-722.94,0.00049315,60]
[314247509,1708119063881,-5810.7,0.00049315,60]
[314247510,1708119063890,-500.0,0.00049315,60]
[314247511,1708119063900,-910.24,0.00049315,60]
[314247512,1708119063910,-500.0,0.00049315,60]
[314247513,1708119063921,-3306.89,0.00049315,60]
[314247514,1708119063933,-544.82,0.00049315,60]
[314247515,1708119063942,-500.0,0.00049315,60]
[314247516,1708119063953,-500.0,0.00049315,60]
[314247517,1708119063964,-2333.25,0.00049315,60]
[314247518,1708119063974,-500.0,0.00049315,60]
[314247519,1708119063983,-1821.43,0.00049315,60]
[314247520,1708119063994,-500.0,0.00049315,60]
[314247521,1708119064004,-647.21352738,0.00049315,60]
[314247522,1708119064014,-1107.39,0.00049315,60]
[314247523,1708119064024,-3684.25,0.00049315,60]
[314247524,1708119064033,-500.0,0.00049315,30]
[314247525,1708119064043,-583.02,0.00049315,60]
[314247526,1708119064053,-500.0,0.00049315,60]
[314247527,1708119064062,-500.0,0.00049315,60]
[314247528,1708119064073,-500.0,0.00049315,60]
[314247529,1708119064082,-673.09,0.00049315,60]
[314247530,1708119064093,-530.67,0.00049315,60]
[314247531,1708119064102,-500.0,0.00049315,60]
[314247532,1708119064111,-500.0,0.00049315,60]
[314247533,1708119064120,-500.0,0.00049315,60]
[314247534,1708119064130,-425.98752575,0.00049315,60]
[314247535,1708119064139,-500.0,0.00049315,60]
[314247536,1708119064148,-500.0,0.00049315,60]
[314247537,1708119064158,-500.0,0.00049315,60]
[314247538,1708119064168,-868.96,0.00049315,60]
[314247539,1708119064178,-510.11032924,0.00049315,60]
[314247540,1708119064187,-371.85552083,0.00049315,60]
[314247541,1708119064197,-500.0,0.00049315,60]
[314247542,1708119064206,-528.94649375,0.00049315,60]
[314247543,1708119064215,-688.48,0.00049315,60]
[314247544,1708119064225,-555.21582698,0.00049315,60]
[314247545,1708119064234,-500.0,0.00049315,60]
[314247546,1708119064243,-2624.63,0.00049315,60]
[314247547,1708119064253,-500.0,0.00049315,60]
[314247548,1708119064262,-842.25,0.00049315,60]
[314247549,1708119064271,-322.02855548,0.00049315,2]
[314247550,1708119064281,-505.85162485,0.00049315,60]
[314247551,1708119064290,-500.0,0.00049315,60]
[314247552,1708119064299,-513.36552378,0.00049315,60]
[314247553,1708119064308,-905.88,0.00049315,60]
[314247554,1708119064317,-500.0,0.00049315,60]
[314247555,1708119064327,-500.0,0.00049315,60]
[314247556,1708119064336,-500.0,0.00049315,60]
[314247557,1708119064346,-500.0,0.00049315,60]
[314247558,1708119064355,-1344.54,0.00049315,60]
[314247559,1708119064364,-460.2700427,0.00049315,60]
[314247560,1708119064373,-500.0,0.00049315,60]
[314247561,1708119064383,-842.36,0.00049315,2]
[314247562,1708119064392,-2942.14,0.00049315,60]
[314247563,1708119064401,-500.0,0.00049315,60]
[314247564,1708119064410,-500.0,0.00049315,60]
[314247565,1708119064420,-505.82,0.00049315,60]
[314247566,1708119064430,-500.0,0.00049315,60]
[314247567,1708119064440,-2570.64,0.00049315,60]
[314247568,1708119064449,-2688.02,0.00049315,60]
[314247569,1708119064458,-500.0,0.00049315,60]
[314247570,1708119064467,-2260.09,0.00049315,60]
[314247571,1708119064477,-500.0,0.00049315,60]
[314247572,1708119064486,-3000.0,0.00049315,120]
[314247573,1708119064495,-504.9704191,0.00049315,60]
[314247574,1708119064505,-716.26,0.00049315,60]
[314247575,1708119064515,-500.0,0.00049315,14]
[314247576,1708119064524,-500.0,0.00049315,60]
[314247577,1708119064534,-924.33,0.00049315,60]
[314247578,1708119064544,-500.0,0.00049315,60]
[314247579,1708119064554,-657.39,0.00049315,60]
[314247580,1708119064566,-500.0,0.00049315,60]
[314247581,1708119064605,-518.52933677,0.00049315,60]
[314247582,1708119064614,-500.0,0.00049315,60]
[314247583,1708119064623,-2023.51,0.00049315,60]
[314247584,1708119064633,-1625.46,0.00049315,60]
[314247585,1708119064642,-507.70250814,0.00049315,60]
[314247586,1708119064651,-506.3,0.00049315,60]
[314247587,1708119064661,-500.0,0.00049315,60]
[314247588,1708119064670,-537.35876154,0.00049315,60]
[314247589,1708119064680,-500.0,0.00049315,60]
[314247590,1708119064689,-953.19,0.00049315,60]
[314247591,1708119064698,-508.84930218,0.00049315,60]
[314247592,1708119064707,-680.83,0.00049315,60]
[314247593,1708119064716,-500.0,0.00049315,60]
[314247594,1708119064726,-1719.81,0.00049315,60]
[314247595,1708119064735,-562.1,0.00049315,60]
[314247596,1708119064745,-586.01,0.00049315,60]
[314247597,1708119064754,-582.82,0.00049315,60]
[314247598,1708119064764,-659.84,0.00049315,60]
[314247599,1708119064773,-500.0,0.00049315,60]
[314247600,1708119064782,-4202.04,0.00049315,60]
[314247601,1708119064791,-7068.33,0.00049315,60]
[314247602,1708119064800,-500.0,0.00049315,60]
[314247603,1708119064810,-607.03094305,0.00049315,60]
[314247604,1708119064819,-500.0,0.00049315,60]
[314247605,1708119064827,-500.0,0.00049315,60]
[314247606,1708119064837,-500.0,0.00049315,60]
[314247607,1708119064846,-2643.96,0.00049315,60]
[314247608,1708119064854,-500.0,0.00049315,60]
[314247609,1708119064864,-500.0,0.00049315,60]
[314247610,1708119064873,-629.93,0.00049315,60]
[314247611,1708119064882,-600.0,0.00049315,60]
[314247612,1708119064892,-629.93,0.00049315,60]
[314247613,1708119064902,-629.93,0.00049315,60]
[314247614,1708119064914,-1183.13,0.00049315,60]
[314247615,1708119064924,-629.93,0.00049315,60]
[314247616,1708119064932,-629.93,0.00049315,60]
[314247617,1708119064943,-629.93,0.00049315,60]
[314247618,1708119064952,-629.93,0.00049315,60]
[314247619,1708119064961,-500.0,0.00049315,60]
[314247620,1708119064970,-629.93,0.00049315,60]
[314247621,1708119064980,-629.93,0.00049315,60]
[314247622,1708119064990,-1949.14,0.00049315,60]
[314247623,1708119065000,-500.0,0.00049315,60]
[314247624,1708119065009,-1927.89,0.00049315,60]
[314247625,1708119065018,-629.93,0.00049315,60]
[314247626,1708119065028,-566.21,0.00049315,60]
[314247627,1708119065038,-500.0,0.00049315,60]
[314247628,1708119065048,-629.93,0.00049315,60]
[314247629,1708119065058,-629.93,0.00049315,60]
[314247630,1708119065067,-699.96,0.00049315,60]
[314247631,1708119065077,-629.93,0.00049315,60]
[314247632,1708119065086,-629.93,0.00049315,60]
[314247633,1708119065096,-1200.81,0.00049315,60]
[314247634,1708119065106,-629.93,0.00049315,60]
[314247635,1708119065115,-500.0,0.00049315,60]
[314247636,1708119065124,-629.93,0.00049315,60]
[314247637,1708119065134,-629.93,0.00049315,60]
[314247638,1708119065143,-500.0,0.00049315,60]
[314247639,1708119065153,-629.93,0.00049315,60]
[314247640,1708119065163,-629.93,0.00049315,60]
[314247641,1708119065172,-515.37800134,0.00049315,60]
[314247642,1708119065182,-629.93,0.00049315,60]
[314247643,1708119065192,-3348.01,0.00049315,60]
[314247644,1708119065201,-629.93,0.00049315,60]
[314247645,1708119065211,-629.93,0.00049315,60]
[314247646,1708119065220,-500.0,0.00049315,60]
[314247647,1708119065230,-500.0,0.00049315,60]
[314247648,1708119065239,-629.93,0.00049315,60]
[314247649,1708119065249,-629.93135516,0.00049315,60]
[314247650,1708119065258,-500.0,0.00049315,60]
[314247651,1708119065267,-1872.95,0.00049315,60]
[314247652,1708119065277,-529.58,0.00049315,60]
[314247653,1708119065286,-500.0,0.00049315,60]
[314247654,1708119065295,-716.71,0.00049315,60]
[314247655,1708119065305,-517.8479965,0.00049315,60]
[314247656,1708119065315,-500.0,0.00049315,60]
[314247657,1708119065324,-693.17,0.00049315,60]
[314247658,1708119065334,-1099.89,0.00049315,60]
[314247659,1708119065344,-515.56973598,0.00049315,60]
[314247660,1708119065354,-1791.39,0.00049315,60]
[314247661,1708119065363,-500.0,0.00049315,60]
[314247662,1708119065373,-500.0,0.00049315,60]
[314247663,1708119065382,-266.67863648,0.00049315,60]
[314247664,1708119065392,-500.0,0.00049315,60]
[314247665,1708119065402,-500.0,0.00049315,60]
[314247666,1708119065411,-552.07,0.00049315,60]
[314247667,1708119065421,-625.84129643,0.00049315,2]
[314247668,1708119065501,-500.0,0.00049315,60]
[314247669,1708119065517,-500.0,0.00049315,60]
[314247670,1708119065527,-573.51,0.00049315,60]
[314247671,1708119065536,-777.88,0.00049315,60]
[314247672,1708119065546,-500.0,0.00049315,60]
[314247673,1708119065556,-500.0,0.00049315,60]
[314247674,1708119065566,-1055.53,0.00049315,60]
[314247675,1708119065576,-722.67,0.00049315,60]
[314247676,1708119065585,-1887.23,0.00049315,60]
[314247677,1708119065595,-513.65813221,0.00049315,60]
[314247678,1708119065604,-500.0,0.00049315,60]
[314247679,1708119065613,-500.0,0.00049315,60]
[314247680,1708119065622,-674.89,0.00049315,60]
[314247681,1708119065632,-1000.0,0.00049315,7]
[314247682,1708119065641,-224.913742,0.00049315,2]
[314247683,1708119065652,-500.0,0.00049315,60]
[314247684,1708119065661,-2198.11,0.00049315,60]
[314247685,1708119065671,-10000.0,0.00049315,60]
[314247686,1708119065682,-8115.72,0.00049315,60]
[314247687,1708119065691,-500.0,0.00049315,60]
[314247688,1708119065700,-500.0,0.00049315,2]
[314247689,1708119065710,-701.75,0.00049315,60]
[314247690,1708119065719,-500.0,0.00049315,60]
[314247691,1708119065728,-224.913742,0.00049315,2]
[314247692,1708119065738,-500.0,0.00049315,60]
[314247693,1708119065747,-504.7466779,0.00049315,60]
[314247694,1708119065756,-779.02,0.00049315,60]
[314247695,1708119065765,-500.0,0.00049315,60]
[314247696,1708119065775,-169.09685641,0.00049315,60]
[314247697,1708119065784,-500.0,0.00049315,60]
[314247698,1708119065794,-1002.39,0.00049315,60]
[314247699,1708119065803,-500.0,0.00049315,60]
[314247700,1708119065812,-1115.22,0.00049315,60]
[314247701,1708119065821,-1272.04,0.00049315,60]
[314247702,1708119065831,-500.0,0.00049315,60]